[Event "Early-Titled-Tuesday-Blitz-May-28-2024"]
[Site "Chess.com"]
[Date "2024.05.28"]
[Round "1"]
[White "Schattman"]
[Black "aljado"]
[Result "0-1"]
[WhiteElo "2562"]
[BlackElo "2170"]
[TimeControl "180+1"]
[EndTime "8:08:57 PDT"]
[Termination "aljado won on time"]

1. Nf3 {[%clk 0:03:00.4]} 1... Nf6 {[%clk 0:02:58.4]} 2. c4 {[%clk 0:02:57.2]}
2... g6 {[%clk 0:02:57.8]} 3. b3 {[%clk 0:02:56.4]} 3... Bg7 {[%clk 0:02:58.3]}
4. Bb2 {[%clk 0:02:57]} 4... O-O {[%clk 0:02:57.8]} 5. g3 {[%clk 0:02:57.4]}
5... d6 {[%clk 0:02:57.6]} 6. d4 {[%clk 0:02:57.2]} 6... c6 {[%clk 0:02:57.9]}
7. Bg2 {[%clk 0:02:56.5]} 7... Bg4 {[%clk 0:02:56.8]} 8. h3 {[%clk 0:02:50.8]}
8... Bc8 {[%clk 0:02:53.5]} 9. O-O {[%clk 0:02:48.4]} 9... Nbd7 {[%clk 0:02:54]}
10. Nc3 {[%clk 0:02:34.2]} 10... a5 {[%clk 0:02:52.5]} 11. e4 {[%clk 0:02:32.2]}
11... e5 {[%clk 0:02:50.5]} 12. dxe5 {[%clk 0:02:30.1]} 12... dxe5 {[%clk
0:02:46.7]} 13. Ba3 {[%clk 0:02:19.8]} 13... Re8 {[%clk 0:02:43.3]} 14. Qd2
{[%clk 0:02:12.8]} 14... Nf8 {[%clk 0:02:32.9]} 15. Qxd8 {[%clk 0:01:55.9]}
15... Rxd8 {[%clk 0:02:29.7]} 16. Rad1 {[%clk 0:01:50.6]} 16... Be6 {[%clk
0:02:27.9]} 17. Be7 {[%clk 0:01:24.8]} 17... Re8 {[%clk 0:02:19.3]} 18. Ba3
{[%clk 0:01:17.1]} 18... Red8 {[%clk 0:02:18.4]} 19. Ng5 {[%clk 0:01:12.7]}
19... h6 {[%clk 0:02:08.4]} 20. Bxf8 {[%clk 0:00:59.4]} 20... hxg5 {[%clk
0:02:03.4]} 21. Be7 {[%clk 0:00:53.9]} 21... Re8 {[%clk 0:02:01.7]} 22. Bd6
{[%clk 0:00:50.9]} 22... Nd7 {[%clk 0:01:51.7]} 23. Na4 {[%clk 0:00:46.5]} 23...
b5 {[%clk 0:01:46]} 24. cxb5 {[%clk 0:00:39.4]} 24... cxb5 {[%clk 0:01:45.6]}
25. Nc5 {[%clk 0:00:39.5]} 25... Nxc5 {[%clk 0:01:45.3]} 26. Bxc5 {[%clk
0:00:40.4]} 26... a4 {[%clk 0:01:43.9]} 27. bxa4 {[%clk 0:00:38.2]} 27... Rxa4
{[%clk 0:01:41.4]} 28. a3 {[%clk 0:00:37]} 28... Bf8 {[%clk 0:01:39.9]} 29. Bxf8
{[%clk 0:00:25.3]} 29... Kxf8 {[%clk 0:01:38.5]} 30. Ra1 {[%clk 0:00:23.6]}
30... Rea8 {[%clk 0:01:36.1]} 31. Rab1 {[%clk 0:00:14.1]} 31... Bc4 {[%clk
0:01:34]} 32. Rfc1 {[%clk 0:00:13.6]} 32... Rxa3 {[%clk 0:01:33.7]} 33. Bf1
{[%clk 0:00:13.9]} 33... Bxf1 {[%clk 0:01:18.8]} 34. Kxf1 {[%clk 0:00:14.1]}
34... Rb8 {[%clk 0:01:18.3]} 35. Rb4 {[%clk 0:00:13]} 35... Ra4 {[%clk
0:01:15.7]} 36. Rb2 {[%clk 0:00:04.8]} 36... b4 {[%clk 0:01:13.9]} 37. Rb3
{[%clk 0:00:04.5]} 37... Ra3 {[%clk 0:01:12.8]} 38. Rbb1 {[%clk 0:00:04]} 38...
b3 {[%clk 0:01:12.4]} 39. Kg2 {[%clk 0:00:04.1]} 39... Kg7 {[%clk 0:01:04.1]}
40. Rc3 {[%clk 0:00:04]} 40... Kf6 {[%clk 0:00:58.2]} 41. Rb2 {[%clk 0:00:04.2]}
41... Ke6 {[%clk 0:00:56.5]} 42. Kf3 {[%clk 0:00:04.5]} 42... f5 {[%clk
0:00:55.2]} 43. Ke3 {[%clk 0:00:03.9]} 43... f4+ {[%clk 0:00:54.4]} 44. Kf3
{[%clk 0:00:02.6]} 44... fxg3 {[%clk 0:00:53.1]} 45. fxg3 {[%clk 0:00:01.2]}
45... Rf8+ {[%clk 0:00:51]} 46. Kg4 {[%clk 0:00:01.4]} 46... Rb8 {[%clk
0:00:48.3]} 47. Rc6+ {[%clk 0:00:01.5]} 47... Kd7 {[%clk 0:00:47.9]} 48. Rxg6
{[%clk 0:00:01.1]} 48... Ra2 {[%clk 0:00:44.9]} 49. Rg7+ {[%clk 0:00:01.3]}
49... Ke6 {[%clk 0:00:43.5]} 50. Rb1 {[%clk 0:00:01.2]} 50... b2 {[%clk
0:00:42.9]} 51. Rc7 {[%clk 0:00:00.8]} 51... Ra1 {[%clk 0:00:41.3]} 52. Rxb2
{[%clk 0:00:01.3]} 52... Rxb2 {[%clk 0:00:39]} 53. Kxg5 {[%clk 0:00:01.8]} 53...
Ra6 {[%clk 0:00:35.8]} 54. g4 {[%clk 0:00:01.9]} 54... Re2 {[%clk 0:00:35]} 55.
Rb7 {[%clk 0:00:02]} 55... Rxe4 {[%clk 0:00:34.3]} 56. h4 {[%clk 0:00:02.5]}
56... Rd4 {[%clk 0:00:31.5]} 57. h5 {[%clk 0:00:02.4]} 57... Rd7 {[%clk
0:00:30]} 58. Rb4 {[%clk 0:00:02.2]} 58... Kd5 {[%clk 0:00:28.7]} 59. h6 {[%clk
0:00:02.5]} 59... e4 {[%clk 0:00:27.2]} 60. Kh5 {[%clk 0:00:02.6]} 60... e3
{[%clk 0:00:26.5]} 61. g5 {[%clk 0:00:02.9]} 61... e2 {[%clk 0:00:25.9]} 62. Rb1
{[%clk 0:00:02.9]} 62... Re6 {[%clk 0:00:22.5]} 63. Re1 {[%clk 0:00:02.7]} 63...
Kd4 {[%clk 0:00:22]} 64. g6 {[%clk 0:00:02.8]} 64... Rd5+ {[%clk 0:00:19.3]} 65.
Kg4 {[%clk 0:00:02.8]} 65... Rxg6+ {[%clk 0:00:18.1]} 66. Kf4 {[%clk 0:00:03.2]}
66... Rxh6 {[%clk 0:00:17.7]} 67. Rxe2 {[%clk 0:00:03.7]} 67... Rh4+ {[%clk
0:00:17.3]} 68. Kg3 {[%clk 0:00:03.4]} 68... Re4 {[%clk 0:00:16.4]} 69. Ra2
{[%clk 0:00:03.8]} 69... Ke5 {[%clk 0:00:15.4]} 70. Ra8 {[%clk 0:00:03]} 70...
Rb4 {[%clk 0:00:14.9]} 71. Re8+ {[%clk 0:00:02.2]} 71... Kd6 {[%clk 0:00:14.2]}
72. Rd8+ {[%clk 0:00:02.4]} 72... Kc6 {[%clk 0:00:14.1]} 73. Rb8 {[%clk
0:00:00.9]} 73... Rxb8 {[%clk 0:00:12.6]} 0-1

[Event "Early-Titled-Tuesday-Blitz-May-28-2024"]
[Site "Chess.com"]
[Date "2024.05.28"]
[Round "1"]
[White "MrLion3000"]
[Black "GiorgianBarbosa"]
[Result "0-1"]
[WhiteElo "2788"]
[BlackElo "2469"]
[TimeControl "180+1"]
[EndTime "8:09:07 PDT"]
[Termination "GiorgianBarbosa won by resignation"]

1. d4 {[%clk 0:03:00.9]} 1... Nf6 {[%clk 0:02:59]} 2. c4 {[%clk 0:02:57.5]} 2...
e6 {[%clk 0:02:57.6]} 3. Nc3 {[%clk 0:02:53.2]} 3... d5 {[%clk 0:02:58.5]} 4.
cxd5 {[%clk 0:02:50.4]} 4... exd5 {[%clk 0:02:59.4]} 5. Bg5 {[%clk 0:02:49]}
5... c6 {[%clk 0:02:59.6]} 6. e3 {[%clk 0:02:42.4]} 6... Be6 {[%clk 0:02:59.4]}
7. Bd3 {[%clk 0:02:41.2]} 7... Nbd7 {[%clk 0:02:59.2]} 8. Qc2 {[%clk 0:02:32.3]}
8... Bd6 {[%clk 0:02:56.4]} 9. h3 {[%clk 0:02:24.3]} 9... h6 {[%clk 0:02:49.7]}
10. Bf4 {[%clk 0:02:24.1]} 10... Bxf4 {[%clk 0:02:47.9]} 11. exf4 {[%clk
0:02:24]} 11... Nb6 {[%clk 0:02:46.8]} 12. O-O-O {[%clk 0:02:21]} 12... Bd7
{[%clk 0:02:45.7]} 13. Re1+ {[%clk 0:02:20.4]} 13... Kf8 {[%clk 0:02:43.2]} 14.
Nf3 {[%clk 0:02:20.9]} 14... Qc7 {[%clk 0:02:30.7]} 15. Ne5 {[%clk 0:02:14]}
15... c5 {[%clk 0:02:15.4]} 16. dxc5 {[%clk 0:02:08]} 16... Qxc5 {[%clk
0:02:16.3]} 17. Kb1 {[%clk 0:02:08.5]} 17... Rc8 {[%clk 0:02:13.1]} 18. Qd2
{[%clk 0:02:01]} 18... g6 {[%clk 0:01:53]} 19. Rc1 {[%clk 0:01:55.8]} 19... Qd6
{[%clk 0:01:51.4]} 20. Ne2 {[%clk 0:01:46.2]} 20... Kg7 {[%clk 0:01:49.2]} 21.
Nd4 {[%clk 0:01:44.5]} 21... Rxc1+ {[%clk 0:01:46.7]} 22. Rxc1 {[%clk
0:01:44.2]} 22... Rc8 {[%clk 0:01:46.8]} 23. Rxc8 {[%clk 0:01:44.9]} 23... Bxc8
{[%clk 0:01:44.8]} 24. Qc2 {[%clk 0:01:44.8]} 24... Bd7 {[%clk 0:01:38.7]} 25.
Bxg6 {[%clk 0:01:43.3]} 25... Qb4 {[%clk 0:01:30.3]} 26. Ndf3 {[%clk 0:01:16.7]}
26... Nc4 {[%clk 0:01:22.1]} 27. Nxc4 {[%clk 0:01:03.7]} 27... fxg6 {[%clk
0:01:20.1]} 28. Ne3 {[%clk 0:00:32.9]} 28... d4 {[%clk 0:01:05.6]} 29. a3 {[%clk
0:00:23.2]} 29... Qd6 {[%clk 0:00:50.7]} 30. Qd3 {[%clk 0:00:12.3]} 30... Qxf4
{[%clk 0:00:30.3]} 31. Qxd4 {[%clk 0:00:12.7]} 31... Qxd4 {[%clk 0:00:28.8]} 32.
Nxd4 {[%clk 0:00:13.6]} 32... Ne4 {[%clk 0:00:29.7]} 33. f3 {[%clk 0:00:14.2]}
33... Ng3 {[%clk 0:00:22.3]} 34. Kc2 {[%clk 0:00:14.5]} 34... Nh5 {[%clk
0:00:22.2]} 35. Kd3 {[%clk 0:00:13.3]} 35... Kf6 {[%clk 0:00:22.3]} 36. Ke4
{[%clk 0:00:13]} 36... Ke7 {[%clk 0:00:20.7]} 37. f4 {[%clk 0:00:10.6]} 37...
Kd6 {[%clk 0:00:19.9]} 38. g4 {[%clk 0:00:10.2]} 38... Nf6+ {[%clk 0:00:20]} 39.
Kd3 {[%clk 0:00:10.6]} 39... h5 {[%clk 0:00:14.7]} 40. g5 {[%clk 0:00:04.7]}
40... Ne8 {[%clk 0:00:13.1]} 41. h4 {[%clk 0:00:04.8]} 41... Ng7 {[%clk
0:00:12.8]} 42. Nf3 {[%clk 0:00:03.6]} 42... Nf5 {[%clk 0:00:09.9]} 43. Nxf5+
{[%clk 0:00:04.1]} 43... Bxf5+ {[%clk 0:00:10.8]} 44. Kd4 {[%clk 0:00:05]} 44...
Bb1 {[%clk 0:00:10.2]} 45. Ne5 {[%clk 0:00:05.9]} 45... Ke6 {[%clk 0:00:10.5]}
46. Ke3 {[%clk 0:00:03.9]} 46... Kf5 {[%clk 0:00:10.5]} 47. b4 {[%clk
0:00:04.8]} 47... b6 {[%clk 0:00:09.8]} 48. Kf3 {[%clk 0:00:04.6]} 48... Ke6
{[%clk 0:00:09.8]} 49. Ke3 {[%clk 0:00:04.6]} 49... Bc2 {[%clk 0:00:09.9]} 50.
Kf3 {[%clk 0:00:04.9]} 50... Bb1 {[%clk 0:00:10]} 51. Ke3 {[%clk 0:00:05.4]}
51... Kf5 {[%clk 0:00:10.4]} 52. Kf3 {[%clk 0:00:05.5]} 52... Bc2 {[%clk
0:00:10.5]} 53. Kg3 {[%clk 0:00:05.9]} 53... Bb1 {[%clk 0:00:10.7]} 54. Nf3
{[%clk 0:00:06.3]} 54... Ke6 {[%clk 0:00:10.5]} 55. Nd4+ {[%clk 0:00:06.5]}
55... Kd5 {[%clk 0:00:10.2]} 56. Ne2 {[%clk 0:00:07.2]} 56... Kc4 {[%clk
0:00:09.9]} 57. Kf3 {[%clk 0:00:04.2]} 57... Kb3 {[%clk 0:00:10.1]} 58. Nd4+
{[%clk 0:00:04.5]} 58... Kxa3 {[%clk 0:00:09.7]} 59. f5 {[%clk 0:00:03.5]} 59...
gxf5 {[%clk 0:00:10.6]} 60. g6 {[%clk 0:00:03.5]} 60... Ba2 {[%clk 0:00:11.1]}
61. b5 {[%clk 0:00:03.8]} 61... Kb4 {[%clk 0:00:11.1]} 62. Kf4 {[%clk
0:00:03.6]} 62... Kc5 {[%clk 0:00:11.3]} 63. Nxf5 {[%clk 0:00:04]} 63... Kxb5
{[%clk 0:00:10.8]} 64. Ke5 {[%clk 0:00:04.5]} 64... a5 {[%clk 0:00:10.1]} 65.
Nd4+ {[%clk 0:00:03.8]} 65... Kb4 {[%clk 0:00:10.1]} 66. Ne6 {[%clk 0:00:04.5]}
66... Bb1 {[%clk 0:00:09]} 67. g7 {[%clk 0:00:05]} 67... Bh7 {[%clk 0:00:09.5]}
68. Nf8 {[%clk 0:00:03.2]} 68... Bg8 {[%clk 0:00:09.4]} 69. Nd7 {[%clk
0:00:03.7]} 69... a4 {[%clk 0:00:09.9]} 70. Nf6 {[%clk 0:00:04.2]} 70... Bf7
{[%clk 0:00:10.5]} 71. Nd5+ {[%clk 0:00:03.3]} 71... Kb3 {[%clk 0:00:10.2]} 72.
Nf4 {[%clk 0:00:02.3]} 72... a3 {[%clk 0:00:10]} 73. Nd3 {[%clk 0:00:02.9]}
73... a2 {[%clk 0:00:09]} 74. Nc1+ {[%clk 0:00:02.1]} 74... Kb2 {[%clk
0:00:09.5]} 75. Nxa2 {[%clk 0:00:03]} 75... Kxa2 {[%clk 0:00:10.4]} 76. Kd6
{[%clk 0:00:03.1]} 76... Kb3 {[%clk 0:00:10.2]} 77. Kc6 {[%clk 0:00:03.6]} 77...
Kc4 {[%clk 0:00:10.5]} 78. Kxb6 {[%clk 0:00:04.1]} 78... Kd5 {[%clk 0:00:10.6]}
79. Kc7 {[%clk 0:00:04.8]} 79... Ke6 {[%clk 0:00:10.7]} 80. Kd8 {[%clk
0:00:05.5]} 80... Kf6 {[%clk 0:00:11]} 81. Kd7 {[%clk 0:00:05.2]} 81... Kxg7
{[%clk 0:00:11.2]} 82. Kd6 {[%clk 0:00:06.1]} 82... Kg6 {[%clk 0:00:11.7]} 83.
Ke5 {[%clk 0:00:07]} 83... Be8 {[%clk 0:00:12]} 84. Kf4 {[%clk 0:00:07.9]} 84...
Bd7 {[%clk 0:00:12.5]} 0-1

[Event "Early-Titled-Tuesday-Blitz-May-28-2024"]
[Site "Chess.com"]
[Date "2024.05.28"]
[Round "1"]
[White "Meri-Arabidze"]
[Black "Naruto75_3"]
[Result "0-1"]
[WhiteElo "2680"]
[BlackElo "2402"]
[TimeControl "180+1"]
[EndTime "8:09:09 PDT"]
[Termination "Naruto75_3 won by checkmate"]

1. Nf3 {[%clk 0:03:00.9]} 1... d5 {[%clk 0:02:59.2]} 2. c4 {[%clk 0:03:01.3]}
2... d4 {[%clk 0:02:58.6]} 3. b4 {[%clk 0:03:01.1]} 3... c5 {[%clk 0:02:58.6]}
4. b5 {[%clk 0:03:01.4]} 4... Nf6 {[%clk 0:02:56.9]} 5. g3 {[%clk 0:03:01.6]}
5... Nbd7 {[%clk 0:02:53.6]} 6. Bg2 {[%clk 0:03:01.8]} 6... e5 {[%clk
0:02:53.7]} 7. d3 {[%clk 0:03:02.4]} 7... Bd6 {[%clk 0:02:52.5]} 8. O-O {[%clk
0:03:02.8]} 8... O-O {[%clk 0:02:50.1]} 9. a4 {[%clk 0:03:03.3]} 9... Rb8 {[%clk
0:02:48.3]} 10. Ra2 {[%clk 0:03:00.2]} 10... b6 {[%clk 0:02:46.8]} 11. Nh4
{[%clk 0:03:00.4]} 11... Re8 {[%clk 0:02:44.4]} 12. a5 {[%clk 0:03:00.4]} 12...
Nf8 {[%clk 0:02:43.4]} 13. Bc6 {[%clk 0:02:54.9]} 13... Bd7 {[%clk 0:02:39.7]}
14. Bxd7 {[%clk 0:02:54.8]} 14... Qxd7 {[%clk 0:02:40.6]} 15. e4 {[%clk
0:02:55.3]} 15... dxe3 {[%clk 0:02:39.4]} 16. Bxe3 {[%clk 0:02:54.3]} 16... e4
{[%clk 0:02:31.7]} 17. dxe4 {[%clk 0:02:43.8]} 17... Qe6 {[%clk 0:02:27.8]} 18.
Nc3 {[%clk 0:02:37.1]} 18... Be5 {[%clk 0:02:24.1]} 19. Nd5 {[%clk 0:02:35.9]}
19... Nxe4 {[%clk 0:02:18.9]} 20. Qf3 {[%clk 0:02:33.6]} 20... Nd6 {[%clk
0:02:11.5]} 21. Rc1 {[%clk 0:02:29.1]} 21... Red8 {[%clk 0:02:07.3]} 22. Nc7
{[%clk 0:02:08.6]} 22... Qe7 {[%clk 0:02:04.2]} 23. axb6 {[%clk 0:02:07]} 23...
axb6 {[%clk 0:02:02.9]} 24. Nd5 {[%clk 0:02:06.8]} 24... Qe6 {[%clk 0:02:01.3]}
25. Nc7 {[%clk 0:01:49.6]} 25... Qe7 {[%clk 0:01:37]} 26. Na6 {[%clk 0:01:49.5]}
26... Rbc8 {[%clk 0:01:27.2]} 27. Nf5 {[%clk 0:01:49.3]} 27... Qf6 {[%clk
0:01:24.8]} 28. Nh4 {[%clk 0:01:44.8]} 28... Ne6 {[%clk 0:01:19.9]} 29. Qxf6
{[%clk 0:01:33.9]} 29... Bxf6 {[%clk 0:01:20.8]} 30. Nf3 {[%clk 0:01:34.4]}
30... Nf5 {[%clk 0:01:19.9]} 31. Re2 {[%clk 0:01:25.5]} 31... Ned4 {[%clk
0:01:13.5]} 32. Nxd4 {[%clk 0:01:19.2]} 32... cxd4 {[%clk 0:01:14.4]} 33. Bf4
{[%clk 0:01:19.4]} 33... d3 {[%clk 0:01:12.2]} 34. Rd2 {[%clk 0:01:18.7]} 34...
Nd4 {[%clk 0:01:11.4]} 35. Kg2 {[%clk 0:01:06.5]} 35... Nb3 {[%clk 0:01:10]} 36.
Rcd1 {[%clk 0:00:56]} 36... Nxd2 {[%clk 0:01:08.4]} 37. Rxd2 {[%clk 0:00:56.4]}
37... Rxc4 {[%clk 0:00:58.8]} 38. Bc7 {[%clk 0:00:56.3]} 38... Rc2 {[%clk
0:00:50.5]} 39. Rd1 {[%clk 0:00:52.9]} 39... Rd7 {[%clk 0:00:50.2]} 40. Bxb6
{[%clk 0:00:52.3]} 40... d2 {[%clk 0:00:50]} 41. Be3 {[%clk 0:00:51.4]} 41...
Rb2 {[%clk 0:00:31.3]} 42. b6 {[%clk 0:00:51.5]} 42... Bd4 {[%clk 0:00:30]} 43.
Nc5 {[%clk 0:00:41]} 43... Bxc5 {[%clk 0:00:20.4]} 44. Bxc5 {[%clk 0:00:41.9]}
44... f6 {[%clk 0:00:19.7]} 45. Kf3 {[%clk 0:00:40.7]} 45... Kf7 {[%clk
0:00:19.4]} 46. Ke2 {[%clk 0:00:38]} 46... Ke6 {[%clk 0:00:19.3]} 47. Be3 {[%clk
0:00:34.4]} 47... Kf5 {[%clk 0:00:19.7]} 48. Kf3 {[%clk 0:00:30.4]} 48... g5
{[%clk 0:00:19.2]} 49. h3 {[%clk 0:00:29.7]} 49... h5 {[%clk 0:00:18.6]} 50. g4+
{[%clk 0:00:30.2]} 50... hxg4+ {[%clk 0:00:18.4]} 51. hxg4+ {[%clk 0:00:31.1]}
51... Kg6 {[%clk 0:00:18.8]} 52. Ke2 {[%clk 0:00:30.4]} 52... Re7 {[%clk
0:00:17.5]} 53. Rxd2 {[%clk 0:00:28.5]} 53... Rxb6 {[%clk 0:00:16.6]} 54. Kf3
{[%clk 0:00:26.2]} 54... Rb4 {[%clk 0:00:16.4]} 55. Rd6 {[%clk 0:00:25.9]} 55...
Ree4 {[%clk 0:00:15]} 56. Bd2 {[%clk 0:00:22.5]} 56... Rbc4 {[%clk 0:00:14.8]}
57. Be3 {[%clk 0:00:05.3]} 57... Rxg4 {[%clk 0:00:13.8]} 58. Re6 {[%clk
0:00:05.7]} 58... Rh4 {[%clk 0:00:12.9]} 59. Ra6 {[%clk 0:00:05.6]} 59... Rh3+
{[%clk 0:00:12.3]} 60. Kg2 {[%clk 0:00:06]} 60... Rh8 {[%clk 0:00:11.9]} 61. Kf3
{[%clk 0:00:06.3]} 61... Re8 {[%clk 0:00:12.3]} 62. Kg3 {[%clk 0:00:05.4]} 62...
Re5 {[%clk 0:00:11.7]} 63. Kf3 {[%clk 0:00:05.6]} 63... Kf5 {[%clk 0:00:11.7]}
64. Rb6 {[%clk 0:00:05.5]} 64... Rd5 {[%clk 0:00:10.8]} 65. Ra6 {[%clk
0:00:05.7]} 65... Rh4 {[%clk 0:00:10.3]} 66. Rb6 {[%clk 0:00:05.7]} 66... Rh3+
{[%clk 0:00:09.8]} 67. Kg2 {[%clk 0:00:06.1]} 67... g4 {[%clk 0:00:09.7]} 68.
Ra6 {[%clk 0:00:06]} 68... Rb5 {[%clk 0:00:08.8]} 69. Rc6 {[%clk 0:00:06.1]}
69... Rf3 {[%clk 0:00:07.4]} 70. Ra6 {[%clk 0:00:05.3]} 70... Rb2 {[%clk
0:00:06.6]} 71. Ra5+ {[%clk 0:00:05.4]} 71... Kg6 {[%clk 0:00:04.7]} 72. Kg1
{[%clk 0:00:05]} 72... g3 {[%clk 0:00:04.3]} 73. Bd4 {[%clk 0:00:02.3]} 73...
gxf2+ {[%clk 0:00:03.5]} 74. Kf1 {[%clk 0:00:01.8]} 74... Rb1+ {[%clk
0:00:03.5]} 75. Ke2 {[%clk 0:00:02.3]} 75... f1=Q+ {[%clk 0:00:03.8]} 76. Kd2
{[%clk 0:00:03.2]} 76... Qd3# {[%clk 0:00:04.1]} 0-1

[Event "Early-Titled-Tuesday-Blitz-May-28-2024"]
[Site "Chess.com"]
[Date "2024.05.28"]
[Round "1"]
[White "C_K_G"]
[Black "CrushingKings"]
[Result "1-0"]
[WhiteElo "2319"]
[BlackElo "2600"]
[TimeControl "180+1"]
[EndTime "8:09:13 PDT"]
[Termination "C_K_G won by resignation"]

1. e4 {[%clk 0:03:00.5]} 1... g6 {[%clk 0:02:59.4]} 2. Nf3 {[%clk 0:02:59.7]}
2... Bg7 {[%clk 0:02:58.7]} 3. d4 {[%clk 0:02:59.9]} 3... c6 {[%clk 0:02:58.3]}
4. c4 {[%clk 0:02:58]} 4... d5 {[%clk 0:02:58.7]} 5. cxd5 {[%clk 0:02:56.8]}
5... cxd5 {[%clk 0:02:59.3]} 6. e5 {[%clk 0:02:56.7]} 6... Bg4 {[%clk
0:02:59.3]} 7. Be2 {[%clk 0:02:56.3]} 7... Nc6 {[%clk 0:02:58.8]} 8. O-O {[%clk
0:02:56.1]} 8... e6 {[%clk 0:02:55.9]} 9. Nc3 {[%clk 0:02:53.8]} 9... Bxf3
{[%clk 0:02:52]} 10. Bxf3 {[%clk 0:02:52.4]} 10... Qb6 {[%clk 0:02:52.7]} 11.
Be3 {[%clk 0:02:46]} 11... Nge7 {[%clk 0:02:49.1]} 12. Qd2 {[%clk 0:02:35.8]}
12... Nf5 {[%clk 0:02:48.4]} 13. Rfd1 {[%clk 0:02:29.7]} 13... O-O {[%clk
0:02:38]} 14. Ne2 {[%clk 0:02:20.4]} 14... Rac8 {[%clk 0:02:25.3]} 15. Bg5
{[%clk 0:02:13.7]} 15... h6 {[%clk 0:01:41.7]} 16. Bf6 {[%clk 0:02:08.6]} 16...
Bxf6 {[%clk 0:01:41.8]} 17. exf6 {[%clk 0:02:09.1]} 17... Kh7 {[%clk 0:01:42.5]}
18. g4 {[%clk 0:02:03.7]} 18... Nh4 {[%clk 0:01:31.5]} 19. Bh1 {[%clk
0:02:04.2]} 19... Qd8 {[%clk 0:01:31.3]} 20. g5 {[%clk 0:01:48]} 20... e5 {[%clk
0:01:25.4]} 21. dxe5 {[%clk 0:01:31.7]} 21... Nxe5 {[%clk 0:01:18.8]} 22. Qxd5
{[%clk 0:01:27]} 22... Qxd5 {[%clk 0:01:03.2]} 23. Rxd5 {[%clk 0:01:27.9]} 23...
Nef3+ {[%clk 0:01:02]} 24. Bxf3 {[%clk 0:01:28.4]} 24... Nxf3+ {[%clk
0:01:02.4]} 25. Kg2 {[%clk 0:01:26.3]} 25... Nxg5 {[%clk 0:01:02.3]} 26. Rd7
{[%clk 0:01:17.8]} 26... Rc2 {[%clk 0:00:58.7]} 27. Ng3 {[%clk 0:01:06.9]} 27...
Rxb2 {[%clk 0:00:56.6]} 28. Re1 {[%clk 0:01:04]} 28... Rb6 {[%clk 0:00:48.3]}
29. h4 {[%clk 0:00:54.5]} 29... Ne6 {[%clk 0:00:43.1]} 30. a4 {[%clk 0:00:40.1]}
30... Nf4+ {[%clk 0:00:40.6]} 31. Kf3 {[%clk 0:00:40.3]} 31... Ne6 {[%clk
0:00:19.6]} 32. a5 {[%clk 0:00:36.8]} 32... Rb3+ {[%clk 0:00:17.1]} 33. Kg4
{[%clk 0:00:35.7]} 33... Rb4+ {[%clk 0:00:15.2]} 34. Kf3 {[%clk 0:00:34.3]}
34... Rf4+ {[%clk 0:00:13]} 35. Kg2 {[%clk 0:00:33.8]} 35... Rxf6 {[%clk
0:00:13.6]} 36. Rxb7 {[%clk 0:00:27.4]} 36... a6 {[%clk 0:00:13.6]} 37. Rb6
{[%clk 0:00:24.5]} 37... Kg7 {[%clk 0:00:11.6]} 38. h5 {[%clk 0:00:20.5]} 38...
Nf4+ {[%clk 0:00:10.5]} 39. Kf1 {[%clk 0:00:15.4]} 39... Rxb6 {[%clk 0:00:06.9]}
40. axb6 {[%clk 0:00:16.3]} 40... Rb8 {[%clk 0:00:07.2]} 41. Re4 {[%clk
0:00:13.8]} 41... Nxh5 {[%clk 0:00:06.2]} 42. Nxh5+ {[%clk 0:00:13.3]} 42...
gxh5 {[%clk 0:00:06.9]} 43. Rb4 {[%clk 0:00:13.7]} 43... Kg6 {[%clk 0:00:06]}
44. Kg2 {[%clk 0:00:12.8]} 44... f5 {[%clk 0:00:05.9]} 45. Kg3 {[%clk
0:00:12.9]} 45... Kg5 {[%clk 0:00:04.8]} 46. f4+ {[%clk 0:00:12.8]} 46... Kf6
{[%clk 0:00:05]} 47. Kh4 {[%clk 0:00:13.3]} 47... Kg6 {[%clk 0:00:01.9]} 48. b7
{[%clk 0:00:13.5]} 48... Kh7 {[%clk 0:00:01.2]} 49. Kxh5 {[%clk 0:00:11]} 49...
a5 {[%clk 0:00:01.8]} 50. Rb6 {[%clk 0:00:09.9]} 50... a4 {[%clk 0:00:01.5]} 51.
Rxh6+ {[%clk 0:00:10.5]} 51... Kg7 {[%clk 0:00:02.2]} 52. Rg6+ {[%clk
0:00:06.6]} 52... Kf7 {[%clk 0:00:02.2]} 53. Ra6 {[%clk 0:00:03.9]} 53... Rxb7
{[%clk 0:00:01.9]} 54. Rxa4 {[%clk 0:00:04.2]} 54... Ke6 {[%clk 0:00:01]} 55.
Kg6 {[%clk 0:00:02.5]} 55... Rb6 {[%clk 0:00:01]} 56. Ra8 {[%clk 0:00:01.9]}
56... Kd7+ {[%clk 0:00:01]} 57. Kxf5 {[%clk 0:00:02]} 57... Rb5+ {[%clk
0:00:01.9]} 58. Kg4 {[%clk 0:00:02.2]} 58... Ke7 {[%clk 0:00:02.8]} 59. Ra7+
{[%clk 0:00:02.4]} 59... Kf6 {[%clk 0:00:03.7]} 60. Ra6+ {[%clk 0:00:03]} 60...
Kf7 {[%clk 0:00:04.4]} 61. f5 {[%clk 0:00:03.6]} 61... Rb1 {[%clk 0:00:05.3]}
62. Ra7+ {[%clk 0:00:02.4]} 62... Kf6 {[%clk 0:00:05.5]} 63. Ra6+ {[%clk
0:00:03.3]} 63... Kf7 {[%clk 0:00:06.4]} 64. Ra4 {[%clk 0:00:03.8]} 64... Rg1+
{[%clk 0:00:07.3]} 65. Kf4 {[%clk 0:00:04.4]} 65... Kf6 {[%clk 0:00:08.2]} 66.
Ra6+ {[%clk 0:00:04.3]} 66... Ke7 {[%clk 0:00:09.1]} 67. Ra7+ {[%clk 0:00:03.5]}
67... Ke8 {[%clk 0:00:09.5]} 68. Ra6 {[%clk 0:00:04.4]} 68... Kf7 {[%clk
0:00:10]} 69. Ke5 {[%clk 0:00:03.8]} 69... Rf1 {[%clk 0:00:10.9]} 70. Ra7+
{[%clk 0:00:03]} 70... Kf8 {[%clk 0:00:11.3]} 71. Ke6 {[%clk 0:00:03.9]} 71...
Rb1 {[%clk 0:00:10.8]} 72. Ra8+ {[%clk 0:00:02.9]} 72... Kg7 {[%clk 0:00:11.5]}
73. f6+ {[%clk 0:00:03.4]} 73... Kg6 {[%clk 0:00:12.2]} 74. Rg8+ {[%clk
0:00:03.7]} 74... Kh7 {[%clk 0:00:12.7]} 75. f7 {[%clk 0:00:04.6]} 75... Rb6+
{[%clk 0:00:12.2]} 76. Ke7 {[%clk 0:00:04.5]} 76... Rb7+ {[%clk 0:00:12.5]} 77.
Kf6 {[%clk 0:00:05.2]} 77... Rb6+ {[%clk 0:00:12.8]} 78. Kf5 {[%clk 0:00:05.8]}
78... Rb5+ {[%clk 0:00:13.2]} 79. Ke6 {[%clk 0:00:06.4]} 79... Rb6+ {[%clk
0:00:13.5]} 80. Kd5 {[%clk 0:00:06.8]} 80... Rb5+ {[%clk 0:00:12.6]} 81. Kc6
{[%clk 0:00:07.1]} 81... Rf5 {[%clk 0:00:13.1]} 82. f8=Q {[%clk 0:00:07.3]}
82... Rxf8 {[%clk 0:00:14]} 83. Rxf8 {[%clk 0:00:08.1]} 1-0